fUST/lending_fUST_20240902
["ID","MTS","AMOUNT","RATE_DAILY","PERIOD"]
[336846720,1725208557447,-916.48,0.00026839,3]
[336846721,1725208557480,-458.24,0.00026839,3]
[336846722,1725208557512,-500.0,0.00026849,2]
[336846723,1725208557544,-1399.19,0.00026849,2]
[336846724,1725208557576,-500.0,0.00026849,2]
[336846725,1725208557608,-500.0,0.00026849,2]
[336846726,1725208557642,-500.0,0.00026849,2]
[336846727,1725208557673,-250.0,0.00026849,7]
[336846728,1725208557703,-250.0,0.00026849,7]
[336846729,1725208557737,-500.0,0.00026849,2]
[336846730,1725208557768,-1035.37,0.00026849,2]
[336846731,1725208557800,-500.0,0.00026849,2]
[336846732,1725208557836,-500.0,0.00026849,2]
[336846733,1725208557870,-500.0,0.00026849,2]
[336846734,1725208557902,-500.0,0.00026849,2]
[336846735,1725208557936,-500.0,0.00026849,2]
[336846736,1725208557971,-645.80779385,0.00026849,2]
[336846737,1725208558004,-774.17,0.00026849,2]
[336846738,1725208558037,-743.54,0.00026849,2]
[336846739,1725208558071,-675.09,0.00026849,2]
[336846740,1725208558105,-500.0,0.00026849,2]
[336846741,1725208558137,-659.95,0.00026849,2]
[336846742,1725208558168,-713.87,0.00026849,2]
[336846743,1725208558201,-706.75,0.00026849,2]
[336846744,1725208558233,-500.0,0.00026849,2]
[336846745,1725208558266,-577.91,0.00026849,2]
[336846746,1725208558297,-500.0,0.00026849,2]
[336846747,1725208558333,-1264.63,0.00026849,2]
[336846748,1725208558366,-2037.44,0.00026849,2]
[336846749,1725208558400,-1592.91,0.00026849,2]
[336846750,1725208558433,-2244.05,0.00026849,2]
[336846751,1725208558467,-530.88,0.00026849,2]
[336846752,1725208558501,-500.0,0.00026849,2]
[336846753,1725208558535,-500.0,0.00026849,2]
[336846754,1725208558568,-500.0,0.00026849,2]
[336846755,1725208558601,-500.0,0.00026849,2]
[336846756,1725208558635,-500.0,0.00026849,2]
[336846757,1725208558668,-517.37,0.00026849,2]
[336846758,1725208558700,-1559.63,0.00026849,2]
[336846759,1725208558733,-500.0,0.00026849,2]
[336846760,1725208558766,-500.0,0.00026849,2]
[336846761,1725208558801,-500.0,0.00026849,2]
[336846762,1725208558835,-540.89,0.00026849,2]
[336846763,1725208558868,-616.42,0.00026849,2]
[336846764,1725208558904,-1049.07,0.00026849,2]
[336846765,1725208558938,-500.0,0.00026849,2]
[336846766,1725208558971,-737.46,0.00026849,2]
[336846767,1725208559004,-349.146511,0.00026849,7]
[336846768,1725208559036,-602.39,0.00026849,2]
[336846769,1725208559067,-828.6,0.00026849,2]
[336846770,1725208559099,-349.146511,0.00026849,7]
[336846771,1725208559131,-1094.09,0.00026849,2]
[336846772,1725208559162,-500.0,0.00026849,2]
[336846773,1725208559194,-500.0,0.00026849,2]
[336846774,1725208559227,-1436.31,0.00026849,2]
[336846775,1725208559270,-500.0,0.00026849,2]
[336846776,1725208559303,-914.04,0.00026849,2]
[336846777,1725208559340,-974.0,0.00026849,2]
[336846778,1725208559375,-2241.31,0.00026849,2]
[336846779,1725208559409,-500.0,0.00026849,2]
[336846780,1725208559441,-500.0,0.00026849,2]
[336846781,1725208559478,-571.88,0.00026849,2]
[336846782,1725208559511,-500.0,0.00026849,2]
[336846783,1725208559543,-218.47149251,0.00026849,2]
[336846784,1725208559575,-500.0,0.00026849,2]
[336846785,1725208559608,-1141.93,0.00026849,2]
[336846786,1725208559640,-564.06,0.00026849,2]
[336846787,1725208559674,-499.442162,0.00026849,7]
[336846788,1725208559706,-500.0,0.00026849,2]
[336846789,1725208559739,-499.442162,0.00026849,7]
[336846790,1725208559772,-500.0,0.00026849,2]
[336846791,1725208559805,-1601.33,0.00026849,2]
[336846792,1725208559838,-500.0,0.00026849,2]
[336846793,1725208559873,-500.0,0.00026849,2]
[336846794,1725208559906,-749.01,0.00026849,2]
[336846795,1725208559940,-710.82,0.00026849,2]
[336846796,1725208559974,-500.0,0.00026849,2]
[336846797,1725208560007,-500.0,0.00026849,2]
[336846798,1725208560042,-1258.62,0.00026849,2]
[336846799,1725208560075,-1734.27018502,0.00026849,2]
[336846800,1725208563748,-500.0,0.00024657,2]
[336846801,1725208563785,-500.0,0.00024657,2]
[336846802,1725208563822,-4503.29,0.00024657,2]
[336846803,1725208563860,-500.0,0.00024657,2]
[336846804,1725208563897,-500.0,0.00024657,2]
[336846805,1725208563931,-508.57300555,0.00024657,2]
[336846806,1725208563968,-500.0,0.00024657,2]
[336846807,1725208564006,-500.0,0.00024657,2]
[336846808,1725208564040,-500.0,0.00024657,2]
[336846809,1725208564074,-500.0,0.00024657,2]
[336846810,1725208564108,-549.26,0.00024657,2]
[336846811,1725208564141,-500.0,0.00024657,2]
[336846812,1725208564174,-500.0,0.00024657,2]
[336846813,1725208564207,-500.0,0.00024657,2]
[336846814,1725208564242,-500.0,0.00024657,2]
[336846815,1725208564277,-500.0,0.00024657,2]
[336846816,1725208564314,-500.0,0.00024657,2]
[336846817,1725208564350,-1884.91,0.00024657,2]
[336846818,1725208564385,-500.0,0.00024657,2]
[336846819,1725208564420,-500.0,0.00024657,2]
[336846820,1725208564456,-500.0,0.00024657,2]
[336846821,1725208564494,-200.0,0.00024657,2]
[336846822,1725208564530,-500.0,0.00024657,2]
[336846823,1725208564565,-500.0,0.00024657,2]
[336846824,1725208564600,-1177.37,0.00024657,2]
[336846825,1725208564635,-621.37840208,0.00024657,2]
[336846826,1725208564670,-500.0,0.00024657,2]
[336846827,1725208564704,-500.0,0.00024657,2]
[336846828,1725208564737,-500.0,0.00024657,2]
[336846829,1725208564771,-500.0,0.00024657,2]
[336846830,1725208564803,-500.0,0.00024657,2]
[336846831,1725208564835,-500.0,0.00024657,2]
[336846832,1725208564867,-500.0,0.00024657,2]
[336846833,1725208564902,-500.0,0.00024657,2]
[336846834,1725208564937,-500.0,0.00024657,2]
[336846835,1725208564971,-500.0,0.00024657,2]
[336846836,1725208565005,-500.0,0.00024657,2]
[336846837,1725208565043,-500.0,0.00024657,2]
[336846838,1725208565079,-500.0,0.00024657,2]
[336846839,1725208565115,-500.0,0.00024657,2]
[336846840,1725208565150,-500.0,0.00024657,2]
[336846841,1725208565183,-500.0,0.00024657,2]
[336846842,1725208565218,-500.0,0.00024657,2]
[336846843,1725208565257,-500.0,0.00024657,2]
[336846844,1725208565289,-500.0,0.00024657,2]
[336846845,1725208565324,-500.0,0.00024657,2]
[336846846,1725208565360,-500.0,0.00024657,2]
[336846847,1725208565395,-500.0,0.00024657,2]
[336846848,1725208565431,-500.0,0.00024657,2]
[336846849,1725208565466,-500.0,0.00024657,2]
[336846850,1725208565508,-500.0,0.00024657,2]
[336846851,1725208565545,-501.93930048,0.00024657,2]
[336846852,1725208565579,-500.0,0.00024657,2]
[336846853,1725208565612,-500.0,0.00024657,2]
[336846854,1725208565646,-500.0,0.00024657,2]
[336846855,1725208565681,-739.97,0.00024657,2]
[336846856,1725208565714,-500.0,0.00024657,2]
[336846857,1725208565747,-544.18194866,0.00024657,2]
[336846858,1725208565782,-500.0,0.00024657,2]
[336846859,1725208565818,-231.04270278,0.00024657,2]
[336846860,1725208565854,-500.0,0.00024657,2]
[336846861,1725208565892,-500.0,0.00024899,2]
[336846862,1725208565928,-409.97389964,0.0002492,2]
[336846863,1725208565963,-500.0,0.0002492,2]
[336846864,1725208566000,-500.0,0.0002493,2]
[336846865,1725208566034,-604.25,0.0002493,2]
[336846866,1725208566069,-500.0,0.00024931,2]
[336846867,1725208566103,-500.0,0.00024931,2]
[336846868,1725208566140,-4503.29,0.00024931,2]
[336846869,1725208566175,-500.0,0.00024931,2]
[336846870,1725208566210,-500.0,0.00024931,2]
[336846871,1725208566254,-549.26,0.00024931,2]
[336846872,1725208566289,-1884.91,0.00024931,2]
[336846873,1725208566324,-500.0,0.00024931,2]
[336846874,1725208566360,-500.0,0.00024931,2]
[336846875,1725208566398,-500.0,0.00024931,2]
[336846876,1725208566433,-500.0,0.00024931,2]
[336846877,1725208566468,-500.0,0.00024931,2]
[336846878,1725208566503,-1177.37,0.00024931,2]
[336846879,1725208566539,-500.0,0.00024931,2]
[336846880,1725208566573,-500.0,0.00024931,2]
[336846881,1725208566608,-500.0,0.00024931,2]
[336846882,1725208566642,-501.79663573,0.00024931,2]
[336846883,1725208566675,-500.0,0.00024931,2]
[336846884,1725208566709,-502.59503862,0.00024931,2]
[336846885,1725208566748,-500.0,0.00024931,2]
[336846886,1725208566924,-500.0,0.00024931,2]
[336846887,1725208566960,-500.0,0.00024931,2]
[336846888,1725208567000,-500.0,0.00024931,2]
[336846889,1725208567037,-500.0,0.00024931,2]
[336846890,1725208567071,-500.0,0.00024931,2]
[336846891,1725208567105,-500.0,0.00024931,2]
[336846892,1725208567143,-739.97,0.00024931,2]
[336846893,1725208567176,-500.0,0.00024931,2]
[336846894,1725208567210,-500.0,0.00024931,2]
[336846895,1725208567248,-500.0,0.00024931,2]
[336846896,1725208567338,500.0,0.00024657,2]
[336846897,1725208567401,500.0,0.00024931,2]
[336846898,1725208567543,500.0,0.00024657,2]
[336846899,1725208567613,500.0,0.00024931,2]
[336846900,1725208567711,500.0,0.00024657,2]
[336846901,1725208567784,500.0,0.00024931,2]
[336846902,1725208568046,503.32225029,0.00024657,2]
[336846903,1725208568149,500.0,0.00024657,2]
[336846904,1725208568197,500.0,0.00024931,2]
[336846905,1725208568265,500.0,0.00024657,2]
[336846906,1725208568322,500.0,0.00024931,2]
[336846907,1725208568395,500.0,0.00024657,2]
[336846908,1725208568504,500.0,0.00024931,2]
[336846909,1725208568557,500.0,0.00024657,2]
[336846910,1725208568608,500.0,0.00024931,2]
[336846911,1725208568726,500.0,0.00024657,2]
[336846912,1725208568770,500.0,0.00024657,2]
[336846913,1725208568815,500.0,0.00024931,2]
[336846914,1725208568857,500.0,0.00024931,2]
[336846915,1725208568918,500.0,0.00024657,2]
[336846916,1725208570427,500.0,0.00024657,2]
[336846917,1725208570745,500.0,0.00024657,2]
[336846918,1725208570795,500.0,0.00024931,2]
[336846919,1725208570832,500.0,0.00024657,2]
[336846920,1725208570904,500.0,0.00024931,2]
[336846921,1725208617462,-500.0,0.00024657,2]
[336846922,1725208617493,-887.78,0.00024657,2]
[336846923,1725208617523,-500.0,0.00024657,2]
[336846924,1725208617553,-500.0,0.00024657,2]
[336846925,1725208617582,-500.0,0.00024657,2]
[336846926,1725208617611,-503.86334005,0.00024657,2]
[336846927,1725208617641,-500.0,0.00024657,2]
[336846928,1725208617670,-500.0,0.00024657,2]
[336846929,1725208617700,-500.0,0.00024657,2]
[336846930,1725208617730,-1269.55,0.00024657,2]
[336846931,1725208617760,-500.0,0.00024657,2]
[336846932,1725208617792,-500.0,0.00024657,2]
[336846933,1725208617824,-800.72,0.00024657,2]
[336846934,1725208617855,-1424.21,0.00024657,2]
[336846935,1725208617889,-500.0,0.00024657,2]
[336846936,1725208617921,-500.0,0.00024657,2]
[336846937,1725208617952,-500.0,0.00024657,2]
[336846938,1725208617983,-500.0,0.00024657,2]
[336846939,1725208618013,-339.60435201,0.00024657,2]
[336846940,1725208618045,-500.0,0.00024657,2]
[336846941,1725208618078,-1403.68,0.00024657,2]
[336846942,1725208618107,-500.0,0.00024657,2]
[336846943,1725208618138,-500.0,0.00024657,2]
[336846944,1725208618169,-520.45,0.00024657,2]
[336846945,1725208618198,-500.0,0.00024657,2]
[336846946,1725208618228,-500.0,0.00024657,2]
[336846947,1725208618262,-500.0,0.00024657,2]
[336846948,1725208618292,-500.0,0.00024657,2]
[336846949,1725208618323,-1610.2,0.00024657,2]
[336846950,1725208618360,-502.80770352,0.00024657,2]
[336846951,1725208618393,-1672.86,0.00024657,2]
[336846952,1725208618425,-500.0,0.00024657,2]
[336846953,1725208618457,-500.0,0.00024657,2]
[336846954,1725208618487,-500.0,0.00024657,2]
[336846955,1725208618518,-500.0,0.00024657,2]
[336846956,1725208618549,-500.0,0.00024657,2]
[336846957,1725208618580,-1767.76,0.00024657,2]
[336846958,1725208618611,-667.9,0.00024657,2]
[336846959,1725208618641,-393.64226258,0.00024657,2]
[336846960,1725208618672,-2782.07,0.00024657,2]
[336846961,1725208618702,-500.0,0.00024657,2]
[336846962,1725208618732,-727.33,0.00024657,2]
[336846963,1725208618761,-500.0,0.00024657,2]
[336846964,1725208618792,-500.0,0.00024657,2]
[336846965,1725208618825,-18725.57234184,0.000249,3]
[336846967,1725208644744,182.663345,0.00014247,2]
[336846977,1725209186997,184.922253,0.00014247,2]
[336846980,1725209233148,-962.51653608,0.00020706,2]
[336846981,1725209233170,-184.922253,0.00020707,2]
[336846982,1725209233192,-250.0,0.00022343,2]
[336846983,1725209233212,-171.998839,0.0002235,2]
[336846984,1725209233233,-250.0,0.00022404,2]
[336846985,1725209233254,-250.0,0.00022466,2]
[336846986,1725209233275,-250.0,0.00022527,2]
[336846987,1725209233297,-250.0,0.00022588,2]
[336846988,1725209233319,-250.0,0.0002265,2]
[336846989,1725209233340,-1509.4252531,0.00022682,2]
[336846990,1725209233362,-250.0,0.00022711,2]
[336846991,1725209233385,-3000.0,0.00022758,2]
[336846992,1725209233405,-250.0,0.00022772,2]
[336846993,1725209233426,-250.0,0.00022833,2]
[336846994,1725209233594,-250.0,0.00022895,2]
[336846995,1725209233620,-250.0,0.00022956,2]
[336846996,1725209233642,-250.0,0.00023017,2]
[336846997,1725209233663,-250.0,0.00023079,2]
[336846998,1725209233685,-250.0,0.0002314,2]
[336846999,1725209233709,-250.0,0.00023201,2]
[336847000,1725209233733,-300.0,0.00023217,2]
[336847001,1725209233757,-300.0,0.00023217,2]
[336847002,1725209233777,-1047.32325407,0.00023219,2]
[336847003,1725209233798,-206.23333478,0.00023219,2]
[336847004,1725209233819,-24900.0,0.00023229,2]
[336847005,1725209233840,-250.0,0.00023262,2]
[336847006,1725209233862,-250.0,0.00023324,2]
[336847007,1725209233885,-250.0,0.00023385,2]
[336847008,1725209233908,-250.0,0.00023446,2]
[336847009,1725209233931,-666.05788,0.0002345,2]
[336847010,1725209233953,-250.0,0.00023508,2]
[336847011,1725209233975,-442.876648,0.0002371,2]
[336847012,1725209233996,-1747.1339996,0.00023771,2]
[336847013,1725209234016,-250.0,0.00023831,2]
[336847014,1725209234037,-462.207624,0.00023836,2]
[336847015,1725209234057,-188.36733025,0.00024646,2]
[336847016,1725209234078,-285.86279726,0.00024646,2]
[336847017,1725209234099,-87423.59345486,0.00024647,3]
[336847018,1725209239125,-62133.30922714,0.00024647,3]
[336847019,1725209239152,-500.0,0.00024656,2]
[336847020,1725209239179,-284.44721898,0.00024656,2]
[336847021,1725209239206,-512.04681368,0.00024656,2]
[336847022,1725209239233,-500.0,0.00024656,2]
[336847023,1725209239260,-500.0,0.00024656,2]
[336847024,1725209239288,-500.0,0.00024656,2]
[336847025,1725209239315,-500.0,0.00024656,2]
[336847026,1725209239345,-500.0,0.00024656,2]
[336847027,1725209239372,-500.0,0.00024656,2]
[336847028,1725209239402,-3521.32210953,0.00024657,11]
[336847029,1725209239428,-506.38693865,0.00024657,2]
[336847030,1725209239456,-500.0,0.00024657,2]
[336847031,1725209239481,-500.0,0.00024657,2]
[336847032,1725209239510,-500.0,0.00024657,2]
[336847033,1725209239537,-500.0,0.00024657,2]
[336847034,1725209239563,-529.26773244,0.00024657,2]
[336847035,1725209239591,-500.0,0.00024657,2]
[336847036,1725209239619,-500.0,0.00024657,2]
[336847037,1725209239646,-500.0,0.00024657,2]
[336847038,1725209239672,-1413.88,0.00024657,2]
[336847039,1725209239700,-500.0,0.00024657,2]
[336847040,1725209239727,-500.0,0.00024657,2]
[336847041,1725209239754,-500.0,0.00024657,2]
[336847042,1725209239781,-500.0,0.00024657,2]
[336847043,1725209239811,-500.0,0.00024657,2]
[336847044,1725209239836,-500.0,0.00024657,2]
[336847045,1725209239862,-500.0,0.00024657,2]
[336847046,1725209239888,-500.0,0.00024657,2]
[336847047,1725209239915,-1054.61,0.00024657,2]
[336847048,1725209239941,-500.0,0.00024657,2]
[336847049,1725209239966,-500.0,0.00024657,2]
[336847050,1725209239992,-500.0,0.00024657,2]
[336847051,1725209240019,-500.0,0.00024657,2]
[336847052,1725209240045,-500.0,0.00024657,2]
[336847053,1725209240068,-500.0,0.00024657,2]
[336847054,1725209240089,-500.0,0.00024657,2]
[336847055,1725209240109,-500.0,0.00024657,2]
[336847056,1725209240129,-500.0,0.00024657,2]
[336847057,1725209240150,-500.0,0.00024657,2]
[336847058,1725209240410,-500.0,0.00024657,2]
[336847059,1725209240432,-243.66,0.00024657,2]
[336847060,1725209240453,-500.0,0.00024657,2]
[336847061,1725209240475,-500.0,0.00024657,2]
[336847062,1725209240496,-500.0,0.00024657,2]
[336847063,1725209240521,-333.43068512,0.00024657,2]
[336847064,1725209240543,-316.88976437,0.00024657,2]
[336847065,1725209240566,-500.0,0.00024657,2]
[336847066,1725209240587,-500.0,0.00024657,2]
[336847067,1725209240610,-609.94,0.00024657,2]
[336847068,1725209240630,-500.0,0.00024657,2]
[336847069,1725209240653,-500.0,0.00024657,2]
[336847070,1725209240674,-500.0,0.00024657,2]
[336847071,1725209240695,-500.0,0.00024657,2]
[336847072,1725209240717,-500.0,0.00024657,2]
[336847073,1725209240739,-500.0,0.00024657,2]
[336847074,1725209240761,-587.86,0.00024657,2]
[336847075,1725209240782,-500.0,0.00024657,2]
[336847076,1725209240803,-500.0,0.00024657,2]
[336847077,1725209240824,-500.0,0.00024657,2]
[336847078,1725209240845,-500.0,0.00024657,2]
[336847079,1725209240866,-500.0,0.00024657,2]
[336847080,1725209240888,-620.9,0.00024657,2]
[336847081,1725209240910,-1339.48,0.00024657,2]
[336847082,1725209240930,-1115.48,0.00024657,2]
[336847083,1725209240951,-500.0,0.00024657,2]
[336847084,1725209240973,-500.0,0.00024657,2]
[336847085,1725209240993,-500.0,0.00024657,2]
[336847086,1725209241013,-500.0,0.00024657,2]
[336847087,1725209241033,-500.0,0.00024657,2]
[336847088,1725209241053,-500.0,0.00024657,2]
[336847089,1725209241073,-500.0,0.00024657,2]
[336847090,1725209241093,-500.0,0.00024657,2]
[336847091,1725209241114,-500.0,0.00024657,2]
[336847092,1725209241134,-500.0,0.00024657,2]
[336847093,1725209241155,-802.1,0.00024657,2]
[336847094,1725209241174,-500.0,0.00024657,2]
[336847095,1725209241195,-500.0,0.00024657,2]
[336847096,1725209241215,-500.0,0.00024657,2]
[336847097,1725209241236,-1594.4,0.00024657,2]
[336847098,1725209241257,-500.0,0.00024657,2]
[336847099,1725209241278,-524.3306409,0.00024657,2]
[336847100,1725209241300,-500.0,0.00024657,2]
[336847101,1725209241321,-500.0,0.00024657,2]
[336847102,1725209241341,-500.0,0.00024657,2]
[336847103,1725209241361,-500.0,0.00024657,2]
[336847104,1725209241381,-703.07,0.00024657,2]
[336847105,1725209241401,-500.0,0.00024657,2]
[336847106,1725209241421,-500.0,0.00024657,2]
[336847107,1725209241442,-532.99,0.00024657,2]
[336847108,1725209241462,-1079.49,0.00024657,2]
[336847109,1725209241482,-500.0,0.00024657,4]
[336847110,1725209241504,-500.0,0.00024657,2]
[336847111,1725209241528,-504.86597261,0.00024657,2]
[336847112,1725209241549,-500.0,0.00024657,2]
[336847113,1725209241571,-500.0,0.00024657,2]
[336847114,1725209241594,-500.0,0.00024657,2]
[336847115,1725209241616,-500.0,0.00024657,2]
[336847116,1725209241637,-500.0,0.00024657,2]
[336847117,1725209241657,-500.0,0.00024657,2]
[336847118,1725209241677,-530.45,0.00024657,2]
[336847119,1725209241697,-1305.75,0.00024657,2]
[336847120,1725209241716,-560.7,0.00024657,2]
[336847121,1725209241736,-501.39464723,0.00024657,2]
[336847122,1725209241756,-537.407645,0.00024657,2]
[336847123,1725209241775,-500.0,0.00024657,2]
[336847124,1725209241795,-500.0,0.00024657,2]
[336847125,1725209241815,-500.0,0.00024657,2]
[336847126,1725209241835,-500.0,0.00024657,2]
[336847127,1725209241855,-500.0,0.00024657,2]
[336847128,1725209241876,-500.0,0.00024657,2]
[336847129,1725209241899,-500.0,0.00024657,2]
[336847130,1725209241923,-500.0,0.00024657,2]
[336847131,1725209241944,-500.0,0.00024657,2]
[336847132,1725209241964,-500.0,0.00024657,2]
[336847133,1725209241987,-500.0,0.00024657,2]
[336847134,1725209242015,-500.0,0.00024657,2]
[336847135,1725209242039,-500.0,0.00024657,2]
[336847136,1725209242062,-500.0,0.00024657,2]
[336847137,1725209242083,-500.0,0.00024657,2]
[336847138,1725209242103,-500.0,0.00024657,2]
[336847139,1725209242123,-500.0,0.00024657,2]
[336847140,1725209242143,-500.0,0.00024657,2]
[336847141,1725209242163,-500.0,0.00024657,2]
[336847142,1725209242183,-500.0,0.00024657,2]
[336847143,1725209242204,-500.0,0.00024657,2]
[336847144,1725209242224,-505.98289776,0.00024657,2]
[336847145,1725209242244,-500.0,0.00024657,2]
[336847146,1725209242266,-500.0,0.00024657,2]
[336847147,1725209242286,-500.0,0.00024657,2]
[336847148,1725209242306,-500.0,0.00024657,2]
[336847149,1725209242327,-500.0,0.00024657,2]
[336847150,1725209242350,-500.0,0.00024657,2]
[336847151,1725209242384,-500.0,0.00024657,2]
[336847152,1725209242407,-500.0,0.00024657,2]
[336847153,1725209242429,-500.0,0.00024657,2]
[336847154,1725209242450,-500.0,0.00024657,2]
[336847155,1725209242472,-500.0,0.00024657,2]
[336847156,1725209242495,-500.0,0.00024657,2]
[336847157,1725209242520,-500.0,0.00024657,2]
[336847158,1725209242541,-500.0,0.00024657,2]
[336847159,1725209242563,-500.0,0.00024657,2]
[336847160,1725209242584,-500.0,0.00024657,2]
[336847161,1725209242610,-500.0,0.00024657,2]
[336847162,1725209242632,-500.0,0.00024657,2]
[336847163,1725209242653,-500.0,0.00024657,2]
[336847164,1725209242675,-500.0,0.00024657,2]
[336847165,1725209242696,-500.0,0.00024657,2]
[336847166,1725209242717,-500.0,0.00024657,2]
[336847167,1725209242739,-500.0,0.00024657,2]
[336847168,1725209242764,-500.0,0.00024657,2]
[336847169,1725209242786,-500.0,0.00024657,2]
[336847170,1725209242810,-500.0,0.00024657,2]
[336847171,1725209242832,-500.0,0.00024657,2]
[336847172,1725209242855,-500.0,0.00024657,2]
[336847173,1725209242878,-1059.37,0.00024657,2]
[336847174,1725209242899,-870.63,0.00024657,2]
[336847175,1725209242921,-500.0,0.00024657,2]
[336847176,1725209242944,-500.0,0.00024657,2]
[336847177,1725209242966,-500.0,0.00024657,2]
[336847178,1725209242988,-500.0,0.00024657,2]
[336847179,1725209243009,-500.0,0.00024657,2]
[336847180,1725209243030,-504.85190653,0.00024657,2]
[336847181,1725209243057,-500.0,0.00024657,2]
[336847182,1725209243078,-500.0,0.00024657,2]
[336847183,1725209243099,-500.0,0.00024657,2]
[336847184,1725209243121,-798.55,0.00024657,2]
[336847185,1725209243143,-500.0,0.00024657,2]
[336847186,1725209243166,-500.0,0.00024657,2]
[336847187,1725209243189,-1695.0,0.00024657,2]
[336847188,1725209243211,-504.2684472,0.00024657,2]
[336847189,1725209243232,-500.0,0.00024657,2]
[336847190,1725209243253,-500.0,0.00024657,2]
[336847191,1725209243275,-690.52,0.00024657,2]
[336847192,1725209243295,-500.89437098,0.00024657,2]
[336847193,1725209243317,-500.0,0.00024657,2]
[336847194,1725209243337,-306.76140951,0.00024657,2]
[336847195,1725209243358,-500.0,0.00024657,2]
[336847196,1725209243379,-650.4,0.00024657,2]
[336847197,1725209243400,-500.0,0.00024657,2]
[336847198,1725209243421,-500.0,0.00024657,2]
[336847199,1725209243442,-500.0,0.00024657,2]
[336847200,1725209243463,-581.46049858,0.00024657,2]
[336847201,1725209243483,-500.0,0.00024657,2]
[336847202,1725209243504,-500.0,0.00024657,2]
[336847203,1725209243528,-520.20016374,0.00024657,2]
[336847204,1725209243548,-500.0,0.00024657,2]
[336847205,1725209243570,-500.0,0.00024657,2]
[336847206,1725209243591,-1159.54,0.00024657,2]
[336847207,1725209243800,-500.0,0.00024657,2]
[336847208,1725209243824,-500.0,0.00024657,2]
[336847209,1725209243845,-500.0,0.00024657,2]
[336847210,1725209243867,-500.0,0.00024657,2]
[336847211,1725209243888,-500.0,0.00024657,2]
[336847212,1725209243908,-500.0,0.00024657,2]
[336847213,1725209243932,-500.0,0.00024657,2]
[336847214,1725209243954,-500.0,0.00024657,2]
[336847215,1725209243975,-500.0,0.00024657,2]
[336847216,1725209243996,-500.0,0.00024657,2]
[336847217,1725209244018,-500.0,0.00024657,2]
[336847218,1725209244040,-500.0,0.00024657,2]
[336847219,1725209244061,-500.0,0.00024657,2]
[336847220,1725209244083,-500.0,0.00024657,2]
[336847221,1725209244104,-500.0,0.00024657,2]
[336847222,1725209244127,-500.0,0.00024657,2]
[336847223,1725209244147,-503.18162228,0.00024657,2]
[336847224,1725209244168,-158.74888084,0.00024657,2]
[336847225,1725209244190,-500.9144571,0.00024657,2]
[336847226,1725209244211,-500.0,0.00024657,2]
[336847227,1725209244232,-500.0,0.00024657,2]
[336847228,1725209244253,-500.0,0.00024657,2]
[336847229,1725209244281,-500.0,0.00024657,2]
[336847230,1725209244301,-500.0,0.00024657,2]
[336847231,1725209244322,-500.0,0.00024657,2]